Cogmind - Beta 16 *** ADVENTURER MODE // 2026.01.15 @ 12:19:36 Player: kullre Result: Self-destructed Performance ------------- Evolutions (1) 500 Regions Visited (2) 400 Robots Destroyed (17) 85 Value Destroyed (583) 583 Prototype IDs (0) 0 Alien Tech Used (0) 0 Bonus (0) 0 TOTAL SCORE: 1568 Bonus ------- None Cogmind --------- Core Integrity 300/400 Matter 299/350 Energy 100/100 System Corruption 0% Temperature Cool (6) Movement Core (1350) Ox26 Location -9/Materials Parts ------- > --- POWER (1) -------- (None) > --- PROPULSION (2) --- (None) > --- UTILITY (4) ------ Huge Storage Unit Small Matter Pod > --- WEAPON (2) ------- (None) > --- INVENTORY (25) --- Light Assault Rifle Peak State ------------ > --- POWER ------------ Ion Engine > --- PROPULSION ------- Wheel Compact Wheel > --- UTILITY ---------- Large Storage Unit Huge Storage Unit > --- WEAPON ----------- Medium Laser Grenade Launcher > --- INVENTORY -------- Light Assault Rifle [Rating: 7] Favorites ----------- Power Ion Engine Engine Ion Engine Propulsion Wheel Leg Aluminum Leg Wheel Wheel Utility Huge Storage Unit Storage Huge Storage Unit Weapon Medium Laser Energy Gun Medium Laser Ballistic Gun Light Assault Rifle Launcher Grenade Launcher Build | -11 -10 -9 ------- Run | Yrd Mat Mat Slots Evolved 2 | . . 2 Power . | . . . Propulsion . | . . . Utility 2 | . . 2 Weapon . | . . . Parts Attached 13 | 6 6 1 Power 1 | 1 . . Engine 1 | 1 . . Core . | . . . Reactor . | . . . Propulsion 4 | 2 2 . Treads . | . . . Leg 2 | . 2 . Wheel 2 | 2 . . Hover . | . . . Flight . | . . . Utility 4 | 1 3 . Device . | . . . Storage 4 | 1 3 . Processor . | . . . Hackware . | . . . Protection . | . . . Artifact . | . . . Weapon 4 | 2 1 1 Energy Gun 1 | 1 . . Energy Cannon . | . . . Ballistic Gun 2 | 1 . 1 Ballistic Cannon . | . . . Launcher 1 | . 1 . Special Weapon . | . . . Impact Weapon . | . . . Slashing Weapon . | . . . Piercing Weapon . | . . . Special Melee Weapon . | . . . Unidentified Prototypes . | . . . Parts Lost 6 | . 4 2 Power 1 | . 1 . Propulsion 2 | . 2 . Utility . | . . . Weapon 3 | . 1 2 Highest Loss Streak 2 | . 2 1 To Critical Strikes . | . . . Average Backups . | . . . Power . | . . . Propulsion . | . . . Utility . | . . . Weapon . | . . . Tool/Special . | . . . Unused Backups . | . . . Power . | . . . Propulsion . | . . . Utility . | . . . Weapon . | . . . Tool/Special . | . . . Average Slot Usage (%) 58 | . 67 43 Engine 4 | . 6 . Wheel 5 | . 8 . Storage 22 | . 23 22 Energy Gun 12 | . 14 10 Ballistic Gun 12 | . 12 11 Peak Build Rating 7 | 6 7 5 Average Rating 4 | 4 4 4 On Entrance 3 | . 6 4 Avg Prop Armor Cover (%) . | . . . Naked Turns . | . . . Heaviest Build 90 | 13 90 86 Greatest Support 26 | 26 26 3 Greatest Overweight (x) 28 | . 27 28 Average Overweight (x) 9 | . 8 27 Largest Inventory Capacity 25 | 8 25 25 Average Capacity 23 | 6 24 25 Most Carried 4 | 4 2 1 Average Carried . | . . . Final Capacity 25 | 8 25 25 Final Carried 1 | . . 1 Class Distribution -------------------- 100% | Mutant Dominant Class ---------------- Mutant | -10/Materials Mutant | -9/Materials Resources | -11 -10 -9 ----------- Run | Yrd Mat Mat Matter Collected 463 | 197 266 . Remotely . | . . . Salvage Created 657 | . 471 186 Parts 24 | . 17 7 Haulers Intercepted . | . . . Recyclers Shooed . | . . . Parts Field Recycled . | . . . Retrieved Matter . | . . . Parts Self-Destructed . | . . . Prevented . | . . . Parts Restored . | . . . Kills | -11 -10 -9 ------- Run | Yrd Mat Mat Combat Hostiles Destroyed 15 | . 11 4 Guns 13 | . 9 4 AOE 2 | . 2 . Classes Destroyed 4 | . 3 1 Recycler 1 | . 1 . Watcher 1 | . 1 . Grunt 14 | . 11 3 Brawler 1 | . . 1 Best Kill Streak 5 | . 5 4 Combat Bots Only 4 | . 4 4 Max Kills in Single Turn 2 | . 2 1 Gunslinging . | . . . Exploded 1 | . 1 . Melee . | . . . Uniques/NPCs Destroyed . | . . . Combat | -11 -10 -9 -------- Run | Yrd Mat Mat Hostile Shots Fired 97 | . 53 44 Missed 28 | . 16 12 Hits 69 | . 37 32 Projectile 69 | . 37 32 Damage Taken 716 | . 447 269 Core 217 | . 117 100 Absorbed by Shields . | . . . Ignored by Resistances 228 | . 139 89 Core Remaining (%) 76 | 100 53 . Volleys Fired 52 | . 35 17 Largest 2 | . 2 1 Hottest 80 | . 80 23 Shots Fired 87 | . 70 17 Gun 80 | . 63 17 Cannon . | . . . Launcher 7 | . 7 . Special . | . . . Kinetic 45 | . 28 17 Thermal 35 | . 35 . Explosive 7 | . 7 . Electromagnetic . | . . . Robot Hit Streak 19 | . 19 13 Robot Miss Streak 2 | . 2 1 Penetration Max . | . . . Secondary Targets . | . . . Shots Hit Robots 71 | . 56 15 Core Hits 33 | . 26 7 Critical Kills . | . . . Critical Parts Destroyed 1 | . 1 . Critical Strikes 6 | . 6 . Burn 5 | . 5 . Destroy 1 | . 1 . Melee Attacks . | . . . Impact . | . . . Slashing . | . . . Piercing . | . . . Sneak Attacks . | . . . Combat Hostiles . | . . . Follow-up Attacks . | . . . Damage Inflicted 1078 | . 834 244 Guns 776 | . 532 244 Cannons . | . . . Explosions 301 | . 301 . Melee . | . . . Ramming 1 | . 1 . Kinetic 418 | . 174 244 Thermal 358 | . 358 . Explosive 301 | . 301 . Electromagnetic . | . . . Impact . | . . . Slashing . | . . . Piercing . | . . . Highest Corruption . | . . . Average Corruption . | . . . Corruption Purged . | . . . Corruption Blocked . | . . . Overload Shots . | . . . Overflow Damage 1 | . 1 . Projectiles . | . . . Explosions 1 | . 1 . Melee . | . . . Knockbacks . | . . . Impact . | . . . Kinetic . | . . . Secondary . | . . . Self-Inflicted Damage 114 | . 114 . Shots 6 | . 6 . Rammed 1 | . 1 . Targets Rammed 1 | . 1 . Kicked . | . . . Crushed . | . . . Highest Temperature 159 | . 159 . Average Temperature 53 | . 53 . Received Heat Transfer 438 | . 246 192 Siege Activations . | . . . Martial Activations . | . . . Shielding Activations . | . . . Robots Disrupted . | . . . Combat Hostiles . | . . . Robots Corrupted . | . . . Combat Hostiles . | . . . Parts Fried . | . . . Impact Corruptions . | . . . Robots Melted . | . . . Combat Hostiles . | . . . Parts Melted 1 | . 1 . Heat Transferred 1443 | . 1443 . Parts Sabotaged . | . . . Parts Stolen . | . . . Parts Stripped . | . . . Power Chain Reactions . | . . . Alert | -11 -10 -9 ------- Run | Yrd Mat Mat Maximum Alert Level . | . . . Low Security (%) 100 | 100 100 100 Level 1 . | . . . Level 2 . | . . . Level 3 . | . . . Level 4 . | . . . Level 5 . | . . . High Security . | . . . Max Security . | . . . Peak Influence 95 | . 95 80 Initial . | . . . Average 11 | . 16 3 Influence Increases 421 | . 331 90 Destroy 0b10 Robot/C 300 | . 220 80 Destroy 0b10 Robot/NC 10 | . 10 . Destroy Leader 72 | . 62 10 Successful Hack 11 | . 11 . Disable Machine 9 | . 9 . Destroy Structure 19 | . 19 . Influence Decreases 361 | . 331 30 Time Decay 311 | . 291 20 Lost Part 50 | . 40 10 Squads Dispatched 5 | . 3 2 Investigation 3 | . 3 . Extermination . | . . . Reinforcement 2 | . . 2 Assault . | . . . Garrison . | . . . Intercept . | . . . Searches Triggered . | . . . Construction Impeded . | . . . Haulers Reinforced . | . . . Active Scanning Responses . | . . . Cargo Convoy Interrupts . | . . . Stealth | -11 -10 -9 --------- Run | Yrd Mat Mat Distress Signals 3 | . 2 1 Communications Jammed . | . . . Distress Signals . | . . . Times Spotted 26 | . 17 9 Peak Tracking Total 6 | . 4 6 Tactical Retreats . | . . . Traps | -11 -10 -9 ------- Run | Yrd Mat Mat Traps Triggered 1 | . 1 . Indirectly . | . . . Trap Hack Attempts . | . . . Triggered . | . . . Disarmed . | . . . Reprogrammed . | . . . Reused . | . . . Traps Extracted . | . . . Installed . | . . . Triggered . | . . . Machines | -11 -10 -9 ---------- Run | Yrd Mat Mat Machines Disabled 1 | . 1 . Max in Single Turn 1 | . 1 . Machines Repaired . | . . . Machines Dismantled . | . . . Machines Sabotaged . | . . . Overloaded Fab Kills . | . . . Hacking | -11 -10 -9 --------- Run | Yrd Mat Mat Machines Accessed 4 | . 4 . Terminals 4 | . 4 . Fabricators . | . . . Repair Stations . | . . . Recycling Units . | . . . Scanalyzers . | . . . Garrison Access . | . . . Total Hacks 15 | . 15 . Successful 10 | . 10 . Failed 5 | . 5 . Catastrophic 1 | . 1 . Database Lockouts . | . . . Manual 2 | . 1 1 Terminals 15 | . 15 . Fabricators . | . . . Repair Stations . | . . . Recycling Units . | . . . Scanalyzers . | . . . Garrison Access . | . . . Terminal Hacks 10 | . 10 . Record 4 | . 4 . Alert Level 3 | . 3 . Dispatch Records 1 | . 1 . Maintenance Status 2 | . 2 . Fabricator Hacks . | . . . Repair Station Hacks . | . . . Recycling Unit Hacks . | . . . Scanalyzer . | . . . Garrison Access Hacks . | . . . Unauthorized Hacks . | . . . Terminals . | . . . Fabricators . | . . . Repair Stations . | . . . Recycling Units . | . . . Scanalyzers . | . . . Garrison Access . | . . . Data Cores Recovered . | . . . Used . | . . . Hacking Detections 4 | . 3 1 Full Trace Events 3 | . 3 . Feedback Events . | . . . Feedback Blocked . | . . . Robot Schematics Acquired . | . . . Robots Built . | . . . Authchips . | . . . Time . | . . . Total Robot Build Rating . | . . . Part Schematics Acquired . | . . . Parts Built . | . . . Authchips . | . . . Time . | . . . Total Part Build Rating . | . . . Part Studies Acquired . | . . . Parts Repaired . | . . . Time . | . . . Parts Recycled . | . . . Recycled Matter . | . . . Retrieved Matter . | . . . Retrieved Components . | . . . Parts Scanalyzed . | . . . Part Schematics Acquired . | . . . Parts Damaged . | . . . Bothacking | -11 -10 -9 ------------ Run | Yrd Mat Mat Used RIF Installer . | . . . Robots Hacked . | . . . Non-combat . | . . . Combat . | . . . Robot Hacks Applied . | . . . Relay Couplers Released . | . . . Fabnet Peak Effective % . | . . . Robots Rewired . | . . . Allies Hacked . | . . . Hacks Repelled . | . . . Allies | -11 -10 -9 -------- Run | Yrd Mat Mat Total Allies . | . . . Largest Group . | . . . Highest-Rated Group . | . . . Highest-Rated Ally . | . . . Total Orders . | . . . Ally Attacks . | . . . Total Damage . | . . . Kills . | . . . Allies Corrupted . | . . . Allies Melted . | . . . Intel | -11 -10 -9 ------- Run | Yrd Mat Mat Active Infowar (turns) . | . . . Robot Analysis Total . | . . . Derelict Logs Recovered . | . . . Drone Launches . | . . . Drone Recoveries . | . . . Exploration | -11 -10 -9 ------------- Run | Yrd Mat Mat Turns Passed 1978 | 62 1201 715 Spaces Moved 444 | 61 335 48 Core 103 | 12 43 48 Treads . | . . . Legs . | . . . Wheels 341 | 49 292 . Hover . | . . . Flight . | . . . Fastest Speed 50 | 50 90 1400 Average Speed 410 | 82 326 1413 Slowest Speed 1450 | 90 1400 1450 Overloaded Moves . | . . . Propulsion Burnouts . | . . . Robots Hopped . | . . . Potential Cave-ins . | . . . Cave-ins Triggered . | . . . Exploration Rate (%) 18 | 4 45 7 Regions Visited 2 Branch Regions . Pre-discovered Areas . | . . . Known Exits Taken . | . . . Unknown Exits Taken 2 | 1 1 . Scrap Searched . | . . . Spaces Dug . | . . . Terrain Destroyed 18 | . 18 . Melee . | . . . Projectile . | . . . AOE 18 | . 18 . Terrain Rammed . | . . . Walls Destroyed . | . . . Machines Disabled . | . . . Actions | -11 -10 -9 --------- Run | Yrd Mat Mat Total 529 | 72 390 67 Wait . | . . . Move 442 | 60 334 48 Hop . | . . . Pick Up 14 | 6 7 1 Fast Attach . | . . . Attach 12 | 6 6 . Detach . | . . . Swap 3 | . 2 1 Drop 5 | . 5 . Fire 52 | . 35 17 Melee . | . . . Ram 1 | . 1 . Kick . | . . . Crush . | . . . Escape Stasis . | . . . Rewire . | . . . Trap . | . . . Miscellaneous . | . . . Route ------- -11/Scrapyard -10/Materials -9/Materials History --------- Turn | Location | Event 5 | -11/Scrapyard | Discovered new exit (range 16) 63 | -11/Scrapyard | Entered Materials 309 | -10/Materials | Build established: Mutant 600 | -10/Materials | Discovered new exit (range 13) 1264 | -10/Materials | Entered another Materials area 1264 | -9/Materials | Evolved 2 slots: Utility x2 1979 | -9/Materials | Self-destructed Last Messages --------------- reinforcements to Terminal M006. W-16 Scout distress signal alerts nearby ally. Med. Laser destroyed. B-36 Bruiser destroyed. K-01 Serf collects debris. K-01 Serf cleans the Pressure Siphon. K-01 Serf collects debris. G-34 Mercenary destroyed. K-01 Serf collects debris. K-01 Serf cleans the Pressure Siphon. K-01 Serf collects debris. G-34 Mercenary destroyed. K-01 Serf collects debris. K-01 Serf cleans the Pressure Siphon. G-34 Mercenary destroyed. K-01 Serf collects debris. K-01 Serf destroyed. K-01 Serf collects debris. Hvy. Assault Rifle destroyed. K-01 Serf collects debris. Map ----- +----------------------------------------------------+ | ?????????????????????????????????????? | | ?????????????????????????????????????? | | ?????????????????????????????????????? | | ?????????????????????????????????????? | | ?????????????????????????????????????? | | ?????????????????????????????????????? | | ?????????????????????????????????????? | | ?????????????????????????????????????? | | ?????????????????????????????????????? | | ?????????????????????????????????????? | | ????????????????##############???????? | | ????????????????# #???????? | | ????????????????# #???????? | | ????????????????# " #???????? | | ????????????????# T #???????? | | ????????????????# " ############ | | ????????????????## #?# # | | ?????????????????# #?# # | | ?????????????????# """" #?# # | | ?????????????????+ """" ### # | | ?????????????????# """" # # | | ?????????????????# + # | | ?????????????????# # # | | ?????????????????# """" # # | | ?????????????????# """" # # | | ?????????????????# """" @ ########## | | ?????????????????# #????????? | | ?????????????????# #????????? | | ?????????????? + """" * #????????? | | ???????????? # """"[=%=#????????? | | ?????????????""??# """"%g!##????????? | | ?????????????????# =k #?????????? | | ???????????????????? #?????????? | | ????????????????????"""" #?????????? | | ????????????????????"""" =#?????????? | | ?????????????????????""" [%#?????????? | | ??????????????????????? #?????????? | | ??????????????????????? #?????????? | | ???????????????????????" ??????????? | | ???????????????????????" ??????????? | | ???????????????????????? ??????????? | | ?????????????????????????????????????? | | ?????????????????????????????????????? | | ?????????????????????????????????????? | | ?????????????????????????????????????? | | ?????????????????????????????????????? | | ?????????????????????????????????????? | | ?????????????????????????????????????? | | ?????????????????????????????????????? | | ?????????????????????????????????????? | +----------------------------------------------------+ Best States ------------- Heat Dissipation 28 Energy Generation 10 Energy Capacity 250 Matter Stores 350 Matter Capacity 350 Sight Range 16 Terrain Scan Density 10 Resistance: KI 20 Resistance: TH 20 Resistance: EX 20 Resistance: EM 20 Resistance: I 20 Resistance: S 20 Resistance: P 20 Evasion (%) 50 Offensive Hacking 10 Item Schematics ----------------- None Robot Schematics ------------------ None Fabricated ------------ Nothing Repaired ---------- Nothing Studied --------- None Alien Tech Used ----------------- None Achievements -------------- None Challenges ------------ None Game ------ Seed ReflexTerrorBotcube Manual? 0 Play Time 00:09:56 Cumulative 2.9 hours Start 2026.01.15 @ 12:11:18 End 2026.01.15 @ 12:19:36 Sessions 1 Manual Loads 0 Difficulty Adventurer Special Mode None Game No. 8 Rogue 0 Adventurer 8 Explorer 0 Win Type - Total 0 Types 0/0/0/0/0/0/0/0/0/0 Lore% 2 Gallery% 5 Achievement% 6 Wizard Run 0 Options --------- Layout 1 ASCII 0 Keyboard 0 Movement Arrows Keybinds 0 Fullscreen 1 Font 24/Smallcaps Map View 50x35 Zoom Use 0% Tactical HUD 0 Map Filters NONE Filters NONE Steam 1 RUN: 79e62534-8d58-46db-b5ed-3ba4e06f24f7